fUSD/lending_fUSD_20250629
["ID","MTS","AMOUNT","RATE_DAILY","PERIOD"]
[368447533,1751181068241,-490.0,0.00028561,3]
[368447534,1751181068251,-490.0,0.00028561,3]
[368447535,1751181068260,-490.0,0.00028561,3]
[368447536,1751181068270,-490.0,0.00028561,3]
[368447537,1751181068280,-1346.0,0.00028561,3]
[368447538,1751181068289,-490.0,0.00028561,3]
[368447539,1751181068298,-490.0,0.00028561,3]
[368447540,1751181068308,-490.0,0.00028561,3]
[368447541,1751181068317,-555.97,0.00028561,3]
[368447542,1751181068327,-490.0,0.00028561,3]
[368447543,1751181068337,-490.0,0.00028561,3]
[368447544,1751181068347,-641.36,0.00028561,3]
[368447545,1751181068359,-490.0,0.00028561,3]
[368447546,1751181068369,-2440.09,0.00028561,3]
[368447547,1751181068379,-690.65,0.00028561,3]
[368447548,1751181068389,-500.0,0.00028562,2]
[368447549,1751181068400,-507.43750572,0.00028562,2]
[368447550,1751181068410,-500.0,0.00028562,2]
[368447551,1751181068420,-500.0,0.00028562,3]
[368447552,1751181068430,-490.0,0.00028562,3]
[368447553,1751181068441,-490.0,0.00028562,3]
[368447554,1751181068450,-490.0,0.00028562,3]
[368447555,1751181068459,-490.0,0.00028562,3]
[368447556,1751181068469,-740.09,0.00028562,3]
[368447557,1751181068478,-490.0,0.00028562,3]
[368447558,1751181068487,-490.0,0.00028562,3]
[368447559,1751181068497,-490.0,0.00028562,3]
[368447560,1751181068507,-1656.61,0.00028562,3]
[368447561,1751181068516,-1452.13,0.00028562,3]
[368447562,1751181068527,-1393.23,0.00028562,3]
[368447563,1751181068536,-1124.39,0.00028562,3]
[368447564,1751181068546,-3477.47,0.00028562,3]
[368447565,1751181068556,-2548.4,0.00028562,3]
[368447566,1751181068566,-5032.03,0.00028562,3]
[368447567,1751181068577,-1891.7,0.00028562,3]
[368447568,1751181068586,-1902.99,0.00028562,3]
[368447569,1751181068596,-3831.53,0.00028562,3]
[368447570,1751181068605,-1988.32,0.00028562,3]
[368447571,1751181068615,-2741.63,0.00028562,3]
[368447572,1751181068624,-1541.56,0.00028562,3]
[368447573,1751181068634,-1919.44,0.00028562,3]
[368447574,1751181068643,-1486.54,0.00028562,3]
[368447575,1751181068653,-5783.78,0.00028562,3]
[368447576,1751181068663,-1407.96,0.00028562,3]
[368447577,1751181068672,-4393.57,0.00028562,3]
[368447578,1751181068682,-6288.52,0.00028562,3]
[368447579,1751181068692,-1854.51,0.00028562,3]
[368447580,1751181068701,-3441.21,0.00028562,3]
[368447581,1751181068711,-2454.2,0.00028562,3]
[368447582,1751181068720,-4755.41,0.00028562,3]
[368447583,1751181068730,-2837.89,0.00028562,3]
[368447584,1751181068739,-3072.45,0.00028562,3]
[368447585,1751181068748,-2609.19,0.00028562,3]
[368447586,1751181068758,-5015.28,0.00028562,3]
[368447587,1751181068767,-31171.34,0.00028562,3]
[368447588,1751181068776,-168.0,0.00028571,2]
[368447589,1751181068786,-152.63619725,0.00028577,2]
[368447590,1751181068797,-3656.8796336,0.00028583,2]
[368447591,1751181068806,-208.0,0.0002859,30]
[368447592,1751181068816,-206.33422799,0.00028592,2]
[368447593,1751181068826,-19916.21,0.000286,2]
[368447594,1751181068835,-500.0,0.00028602,3]
[368447595,1751181068845,-3820.56583955,0.00028602,2]
[368447596,1751181068855,-500.0,0.00028602,3]
[368447597,1751181068864,-762.48,0.00028602,3]
[368447598,1751181068874,-300.0,0.00028602,10]
[368447599,1751181068883,-285.50169791,0.00028602,2]
[368447600,1751181068893,-509.51,0.00028603,3]
[368447601,1751181068903,-490.0,0.00028603,3]
[368447602,1751181068912,-872.31,0.00028603,3]
[368447603,1751181068921,-490.0,0.00028603,3]
[368447604,1751181068931,-490.0,0.00028603,3]
[368447605,1751181068940,-490.0,0.00028603,3]
[368447606,1751181068950,-537.32,0.00028603,3]
[368447607,1751181068959,-876.43,0.00028603,3]
[368447608,1751181068969,-390.20932361,0.00028603,3]
[368447609,1751181068978,-490.0,0.00028603,3]
[368447610,1751181068987,-1074.07,0.00028603,3]
[368447611,1751181068997,-1120.77,0.00028603,3]
[368447612,1751181069006,-490.0,0.00028603,3]
[368447613,1751181069016,-490.0,0.00028603,3]
[368447614,1751181069026,-490.0,0.00028603,3]
[368447615,1751181069036,-490.0,0.00028603,3]
[368447616,1751181069045,-490.0,0.00028603,3]
[368447617,1751181069054,-943.92,0.00028603,3]
[368447618,1751181069064,-505.13,0.00028603,3]
[368447619,1751181069074,-731.52,0.00028603,3]
[368447620,1751181069083,-490.0,0.00028603,3]
[368447621,1751181069092,-490.0,0.00028603,3]
[368447622,1751181069101,-490.0,0.00028603,3]
[368447623,1751181069111,-490.0,0.00028603,3]
[368447624,1751181069120,-490.0,0.00028603,3]
[368447625,1751181069130,-615.78,0.00028603,3]
[368447626,1751181069139,-490.0,0.00028603,3]
[368447627,1751181069149,-490.0,0.00028603,3]
[368447628,1751181069159,-490.0,0.00028603,3]
[368447629,1751181069169,-1000.24,0.00028603,3]
[368447630,1751181069179,-490.0,0.00028603,3]
[368447631,1751181069190,-490.0,0.00028603,3]
[368447632,1751181069199,-490.0,0.00028603,3]
[368447633,1751181069209,-490.0,0.00028603,3]
[368447634,1751181069220,-1720.36,0.00028603,3]
[368447635,1751181069230,-490.0,0.00028603,3]
[368447636,1751181069241,-490.0,0.00028603,3]
[368447637,1751181069252,-490.0,0.00028603,3]
[368447638,1751181069263,-490.0,0.00028603,3]
[368447639,1751181069272,-511.01214898,0.00028603,3]
[368447640,1751181069281,-394.86472337,0.00028603,3]
[368447641,1751181069290,-490.0,0.00028603,3]
[368447642,1751181069300,-490.0,0.00028603,3]
[368447643,1751181069311,-1258.99,0.00028603,3]
[368447644,1751181069321,-564.23,0.00028603,3]
[368447645,1751181069330,-490.0,0.00028603,3]
[368447646,1751181069340,-387.58621687,0.00028603,3]
[368447647,1751181069350,-490.0,0.00028603,3]
[368447648,1751181069359,-933.35,0.00028603,3]
[368447649,1751181069369,-490.0,0.00028603,3]
[368447650,1751181069378,-490.0,0.00028603,3]
[368447651,1751181069387,-490.0,0.00028603,3]
[368447652,1751181069397,-490.0,0.00028603,3]
[368447653,1751181069406,-490.0,0.00028603,3]
[368447654,1751181069416,-490.0,0.00028603,3]
[368447655,1751181069427,-490.0,0.00028603,3]
[368447656,1751181069437,-490.0,0.00028603,3]
[368447657,1751181069447,-490.0,0.00028603,3]
[368447658,1751181069457,-490.0,0.00028603,3]
[368447659,1751181069564,-490.0,0.00028603,3]
[368447660,1751181069574,-516.99,0.00028603,3]
[368447661,1751181069583,-723.42,0.00028603,2]
[368447662,1751181069592,-490.0,0.00028603,3]
[368447663,1751181069602,-490.0,0.00028603,3]
[368447664,1751181069611,-490.0,0.00028603,3]
[368447665,1751181069620,-490.0,0.00028603,3]
[368447666,1751181069629,-490.0,0.00028603,3]
[368447667,1751181069638,-490.0,0.00028603,3]
[368447668,1751181069648,-490.0,0.00028603,3]
[368447669,1751181069657,-1071.27,0.00028603,3]
[368447670,1751181069666,-490.0,0.00028603,3]
[368447671,1751181069676,-509.94558105,0.00028603,3]
[368447672,1751181069685,-490.0,0.00028603,3]
[368447673,1751181069694,-490.0,0.00028603,3]
[368447674,1751181069703,-490.0,0.00028603,3]
[368447675,1751181069712,-490.0,0.00028603,3]
[368447676,1751181069721,-490.0,0.00028603,3]
[368447677,1751181069731,-500.0,0.00028603,3]
[368447678,1751181069740,-666.17,0.00028603,3]
[368447679,1751181069749,-490.0,0.00028603,3]
[368447680,1751181069758,-490.0,0.00028603,3]
[368447681,1751181069767,-1624.35,0.00028603,3]
[368447682,1751181069777,-490.0,0.00028603,3]
[368447683,1751181069787,-490.0,0.00028603,3]
[368447684,1751181069796,-490.0,0.00028603,3]
[368447685,1751181069806,-1354.79,0.00028603,3]
[368447686,1751181069816,-490.0,0.00028603,3]
[368447687,1751181069826,-490.0,0.00028603,3]
[368447688,1751181069836,-490.0,0.00028603,3]
[368447689,1751181069846,-733.36,0.00028603,3]
[368447690,1751181069855,-490.0,0.00028603,3]
[368447691,1751181069865,-490.0,0.00028603,3]
[368447692,1751181069874,-490.0,0.00028603,3]
[368447693,1751181069884,-490.0,0.00028603,3]
[368447694,1751181069893,-490.0,0.00028603,3]
[368447695,1751181069903,-419.48441909,0.00028603,3]
[368447696,1751181069912,-787.97,0.00028603,3]
[368447697,1751181069922,-490.0,0.00028603,3]
[368447698,1751181069931,-971.81,0.00028603,3]
[368447699,1751181069941,-610.28,0.00028603,3]
[368447700,1751181069950,-490.0,0.00028603,3]
[368447701,1751181069960,-490.0,0.00028603,3]
[368447702,1751181069969,-490.0,0.00028603,3]
[368447703,1751181069979,-503.50386462,0.00028603,3]
[368447704,1751181069988,-885.71,0.00028603,3]
[368447705,1751181069997,-1219.91,0.00028603,3]
[368447706,1751181070007,-490.0,0.00028603,3]
[368447707,1751181070017,-490.0,0.00028603,3]
[368447708,1751181070026,-490.0,0.00028603,3]
[368447709,1751181070035,-490.0,0.00028603,3]
[368447710,1751181070045,-500.0,0.00028603,3]
[368447711,1751181070054,-490.0,0.00028603,3]
[368447712,1751181070063,-490.0,0.00028603,3]
[368447713,1751181070072,-490.0,0.00028603,3]
[368447714,1751181070081,-517.38,0.00028603,3]
[368447715,1751181070091,-490.0,0.00028603,3]
[368447716,1751181070100,-588.0,0.00028603,3]
[368447717,1751181070110,-490.0,0.00028603,3]
[368447718,1751181070119,-490.0,0.00028603,3]
[368447719,1751181070128,-490.0,0.00028603,3]
[368447720,1751181070137,-490.0,0.00028603,3]
[368447721,1751181070147,-838.78,0.00028603,3]
[368447722,1751181070157,-490.0,0.00028603,3]
[368447723,1751181070166,-490.0,0.00028603,3]
[368447724,1751181070176,-554.27,0.00028603,3]
[368447725,1751181070185,-1357.43,0.00028603,3]
[368447726,1751181070195,-490.0,0.00028603,3]
[368447727,1751181070204,-490.0,0.00028603,3]
[368447728,1751181070213,-490.0,0.00028603,3]
[368447729,1751181070223,-493.58,0.00028603,3]
[368447730,1751181070232,-490.0,0.00028603,3]
[368447731,1751181070242,-1264.19,0.00028603,3]
[368447732,1751181070251,-490.0,0.00028603,3]
[368447733,1751181070260,-506.51663546,0.00028603,3]
[368447734,1751181070270,-490.0,0.00028603,3]
[368447735,1751181070279,-719.65,0.00028603,3]
[368447736,1751181070288,-490.0,0.00028603,3]
[368447737,1751181070298,-504.10613856,0.00028603,3]
[368447738,1751181070307,-490.0,0.00028603,3]
[368447739,1751181070316,-490.0,0.00028603,3]
[368447740,1751181070327,-490.0,0.00028603,3]
[368447741,1751181070336,-490.0,0.00028603,3]
[368447742,1751181070345,-490.0,0.00028603,3]
[368447743,1751181070354,-490.0,0.00028603,3]
[368447744,1751181070366,-490.0,0.00028603,3]
[368447745,1751181070375,-578.79,0.00028603,3]
[368447746,1751181070385,-1280.65,0.00028603,3]
[368447747,1751181070394,-750.62,0.00028603,3]
[368447748,1751181070405,-490.0,0.00028603,3]
[368447749,1751181070414,-516.71,0.00028603,3]
[368447750,1751181070423,-490.0,0.00028603,3]
[368447751,1751181070432,-490.0,0.00028603,3]
[368447752,1751181070443,-490.0,0.00028603,3]
[368447753,1751181070453,-490.0,0.00028603,3]
[368447754,1751181070462,-490.0,0.00028603,3]
[368447755,1751181070471,-490.0,0.00028603,3]
[368447756,1751181070481,-490.0,0.00028603,3]
[368447757,1751181070491,-1233.62,0.00028603,3]
[368447758,1751181070500,-490.0,0.00028603,3]
[368447759,1751181070510,-490.0,0.00028603,3]
[368447760,1751181070519,-490.0,0.00028603,3]
[368447761,1751181070530,-490.0,0.00028603,3]
[368447762,1751181070539,-490.0,0.00028603,3]
[368447763,1751181070548,-490.0,0.00028603,3]
[368447764,1751181070558,-981.61,0.00028603,3]
[368447765,1751181070567,-490.0,0.00028603,3]
[368447766,1751181070576,-490.0,0.00028603,3]
[368447767,1751181070585,-490.0,0.00028603,3]
[368447768,1751181070595,-490.0,0.00028603,3]
[368447769,1751181070603,-1942.91,0.00028603,3]
[368447770,1751181070612,-490.0,0.00028603,3]
[368447771,1751181070622,-490.0,0.00028603,3]
[368447772,1751181070630,-885.07,0.00028603,3]
[368447773,1751181070639,-490.0,0.00028603,3]
[368447774,1751181070648,-490.0,0.00028603,3]
[368447775,1751181070657,-490.0,0.00028603,3]
[368447776,1751181070666,-490.0,0.00028603,3]
[368447777,1751181070675,-838.05,0.00028603,3]
[368447778,1751181070685,-410.57404717,0.00028603,3]
[368447779,1751181070694,-490.0,0.00028603,3]
[368447780,1751181070703,-490.0,0.00028603,3]
[368447781,1751181070712,-490.0,0.00028603,3]
[368447782,1751181070721,-599.14,0.00028603,3]
[368447783,1751181070730,-262.23428244,0.00028603,3]
[368447784,1751181070739,-490.0,0.00028603,3]
[368447785,1751181070748,-490.0,0.00028603,3]
[368447786,1751181070757,-490.0,0.00028603,3]
[368447787,1751181070767,-605.82,0.00028603,3]
[368447788,1751181070775,-538.61,0.00028603,3]
[368447789,1751181070785,-490.0,0.00028603,3]
[368447790,1751181070794,-490.0,0.00028603,3]
[368447791,1751181070803,-490.0,0.00028603,3]
[368447792,1751181070813,-490.0,0.00028603,3]
[368447793,1751181070822,-490.0,0.00028603,3]
[368447794,1751181070832,-490.0,0.00028603,2]
[368447795,1751181070842,-490.0,0.00028603,3]
[368447796,1751181070851,-1326.52,0.00028603,3]
[368447797,1751181070862,-490.0,0.00028603,3]
[368447798,1751181070871,-490.0,0.00028603,3]
[368447799,1751181070880,-490.0,0.00028603,3]
[368447800,1751181070889,-490.0,0.00028603,3]
[368447801,1751181070898,-495.90850278,0.00028603,3]
[368447802,1751181070908,-703.96,0.00028603,3]
[368447803,1751181070917,-490.0,0.00028603,3]
[368447804,1751181070926,-490.0,0.00028603,3]
[368447805,1751181070935,-490.0,0.00028603,3]
[368447806,1751181070946,-490.0,0.00028603,3]
[368447807,1751181070955,-490.0,0.00028603,3]
[368447808,1751181070965,-490.0,0.00028603,3]
[368447809,1751181070974,-657.34,0.00028603,3]
[368447810,1751181070983,-490.0,0.00028603,3]
[368447811,1751181070992,-1257.49,0.00028603,3]
[368447812,1751181071002,-490.0,0.00028603,3]
[368447813,1751181071011,-490.0,0.00028603,3]
[368447814,1751181071020,-490.0,0.00028603,3]
[368447815,1751181071030,-490.0,0.00028603,3]
[368447816,1751181071039,-655.2,0.00028603,3]
[368447817,1751181071048,-490.0,0.00028603,3]
[368447818,1751181071059,-490.0,0.00028603,3]
[368447819,1751181071068,-490.0,0.00028603,3]
[368447820,1751181071077,-490.0,0.00028603,3]
[368447821,1751181071086,-490.0,0.00028603,3]
[368447822,1751181071096,-745.65,0.00028603,3]
[368447823,1751181071105,-490.0,0.00028603,3]
[368447824,1751181071115,-490.0,0.00028603,3]
[368447825,1751181071126,-490.0,0.00028603,3]
[368447826,1751181071138,-490.0,0.00028603,3]
[368447827,1751181071146,-490.0,0.00028603,3]
[368447828,1751181071155,-519.36546108,0.00028603,3]
[368447829,1751181071164,-492.97651455,0.00028603,3]
[368447830,1751181071174,-490.0,0.00028603,3]
[368447831,1751181071183,-490.0,0.00028603,3]
[368447832,1751181071192,-623.41,0.00028603,3]
[368447833,1751181071201,-490.0,0.00028603,3]
[368447834,1751181071210,-1189.96,0.00028603,3]
[368447835,1751181071219,-490.0,0.00028603,3]
[368447836,1751181071229,-490.0,0.00028603,3]
[368447837,1751181071238,-490.0,0.00028603,3]
[368447838,1751181071247,-490.0,0.00028603,3]
[368447839,1751181071257,-626.57,0.00028603,3]
[368447840,1751181071266,-490.0,0.00028603,3]
[368447841,1751181071276,-1117.96,0.00028603,3]
[368447842,1751181071285,-490.0,0.00028603,3]
[368447843,1751181071294,-490.0,0.00028603,3]
[368447844,1751181071304,-490.0,0.00028603,3]
[368447845,1751181071313,-490.0,0.00028603,3]
[368447846,1751181071323,-490.0,0.00028603,3]
[368447847,1751181071332,-490.0,0.00028603,3]
[368447848,1751181071342,-490.0,0.00028603,3]
[368447849,1751181071351,-490.0,0.00028603,3]
[368447850,1751181071360,-490.0,0.00028603,3]
[368447851,1751181071369,-490.0,0.00028603,3]
[368447852,1751181071379,-490.0,0.00028603,3]
[368447853,1751181071388,-490.0,0.00028603,3]
[368447854,1751181071398,-1001.77,0.00028603,3]
[368447855,1751181071408,-610.94,0.00028603,3]
[368447856,1751181071417,-490.0,0.00028603,3]
[368447857,1751181071426,-490.0,0.00028603,3]
[368447858,1751181071435,-1074.41,0.00028603,3]
[368447859,1751181071444,-927.46,0.00028603,3]
[368447860,1751181071454,-490.0,0.00028603,3]
[368447861,1751181071463,-372.11883628,0.00028603,3]
[368447862,1751181071472,-490.0,0.00028603,3]
[368447863,1751181071482,-490.0,0.00028603,3]
[368447864,1751181071491,-490.0,0.00028603,3]
[368447865,1751181071500,-490.0,0.00028603,3]
[368447866,1751181071509,-1647.35,0.00028603,3]
[368447867,1751181071519,-1297.21,0.00028603,3]
[368447868,1751181071528,-1023.52,0.00028603,3]
[368447869,1751181071537,-490.0,0.00028603,3]
[368447870,1751181071547,-490.0,0.00028603,3]
[368447871,1751181071556,-490.0,0.00028603,3]
[368447872,1751181071565,-490.0,0.00028603,3]
[368447873,1751181071574,-490.0,0.00028603,3]
[368447874,1751181071583,-594.86,0.00028603,3]
[368447875,1751181071592,-527.18,0.00028603,3]
[368447876,1751181071604,-490.0,0.00028603,3]
[368447877,1751181071613,-490.0,0.00028603,3]
[368447878,1751181071623,-490.0,0.00028603,3]
[368447879,1751181071634,-490.0,0.00028603,3]
[368447880,1751181071643,-550.08,0.00028603,3]
[368447881,1751181071654,-500.0,0.00028603,3]
[368447882,1751181071663,-490.0,0.00028603,3]
[368447883,1751181071673,-490.0,0.00028603,3]
[368447884,1751181071682,-490.0,0.00028603,3]
[368447885,1751181071691,-490.0,0.00028603,3]
[368447886,1751181071701,-490.0,0.00028603,3]
[368447887,1751181071711,-550.49,0.00028603,3]
[368447888,1751181071721,-1102.31,0.00028603,3]
[368447889,1751181071731,-490.0,0.00028603,3]
[368447890,1751181071742,-490.0,0.00028603,3]
[368447891,1751181071752,-1429.13,0.00028603,3]
[368447892,1751181071761,-531.64,0.00028603,3]
[368447893,1751181071771,-490.0,0.00028603,3]
[368447894,1751181071780,-490.0,0.00028603,3]
[368447895,1751181071790,-1944.14,0.00028603,3]
[368447896,1751181071799,-490.0,0.00028603,3]
[368447897,1751181071808,-490.0,0.00028603,3]
[368447898,1751181071818,-1474.31,0.00028603,3]
[368447899,1751181071828,-490.0,0.00028603,3]
[368447900,1751181071837,-490.0,0.00028603,3]
[368447901,1751181071847,-490.0,0.00028603,3]
[368447902,1751181071856,-521.38,0.00028603,3]
[368447903,1751181071865,-490.0,0.00028603,3]
[368447904,1751181071875,-490.0,0.00028603,3]
[368447905,1751181071884,-490.0,0.00028603,3]
[368447906,1751181071894,-490.0,0.00028603,3]
[368447907,1751181071904,-490.0,0.00028603,3]
[368447908,1751181071915,-490.0,0.00028603,3]
[368447909,1751181071924,-490.0,0.00028603,3]
[368447910,1751181071934,-760.38,0.00028603,3]
[368447911,1751181071943,-903.15,0.00028603,3]
[368447912,1751181071953,-490.0,0.00028603,3]
[368447913,1751181071964,-490.0,0.00028603,3]
[368447914,1751181071974,-919.73,0.00028603,3]
[368447915,1751181071984,-490.0,0.00028603,3]
[368447916,1751181071993,-490.0,0.00028603,3]
[368447917,1751181072003,-490.0,0.00028603,3]
[368447918,1751181072013,-1239.33,0.00028603,3]
[368447919,1751181072022,-490.0,0.00028603,3]
[368447920,1751181072032,-490.0,0.00028603,3]
[368447921,1751181072042,-2008.91,0.00028603,3]
[368447922,1751181072052,-500.0,0.00028611,3]
[368447923,1751181072062,-762.48,0.00028611,3]
[368447924,1751181072071,-591.6,0.00028612,3]
[368447925,1751181072081,-1077.84,0.00028612,3]
[368447926,1751181072091,-490.0,0.00028612,3]
[368447927,1751181072100,-490.0,0.00028612,3]
[368447928,1751181072110,-490.0,0.00028612,3]
[368447929,1751181072120,-527.22195774,0.00028612,3]
[368447930,1751181072130,-490.0,0.00028612,3]
[368447931,1751181072140,-490.0,0.00028612,3]
[368447932,1751181072149,-490.0,0.00028612,3]
[368447933,1751181072160,-490.0,0.00028612,3]
[368447934,1751181072170,-490.0,0.00028612,3]
[368447935,1751181072180,-490.0,0.00028612,3]
[368447936,1751181072189,-490.0,0.00028612,3]
[368447937,1751181072199,-490.0,0.00028612,3]
[368447938,1751181072209,-490.0,0.00028612,3]
[368447939,1751181072219,-611.0558359,0.00028612,3]
[368447940,1751181072229,-490.0,0.00028612,3]
[368447941,1751181072239,-490.0,0.00028612,3]
[368447942,1751181072249,-490.0,0.00028612,3]
[368447943,1751181072259,-490.0,0.00028612,3]
[368447944,1751181072269,-490.0,0.00028612,3]
[368447945,1751181072278,-490.0,0.00028612,3]
[368447946,1751181072288,-490.0,0.00028612,3]
[368447947,1751181072298,-490.0,0.00028612,3]
[368447948,1751181072308,-267.64587003,0.00028612,3]
[368447949,1751181072319,-341.81424652,0.00028612,3]
[368447950,1751181072329,-490.0,0.00028612,3]
[368447951,1751181072339,-490.0,0.00028612,3]
[368447952,1751181072349,-490.0,0.00028612,3]
[368447953,1751181072360,-498.27941426,0.00028612,3]
[368447954,1751181072372,-490.0,0.00028612,3]
[368447955,1751181072381,-150.0,0.00028612,30]
[368447956,1751181072391,-490.0,0.00028612,3]
[368447957,1751181072402,-490.0,0.00028612,3]
[368447958,1751181072411,-297.03649342,0.00028612,3]
[368447959,1751181072422,-490.0,0.00028612,3]
[368447960,1751181072433,-490.0,0.00028612,3]
[368447961,1751181072442,-490.0,0.00028612,2]
[368447962,1751181072453,-320.0,0.00028612,3]
[368447963,1751181072462,-490.0,0.00028612,3]
[368447964,1751181072472,-490.0,0.00028612,3]
[368447965,1751181072482,-490.0,0.00028612,3]
[368447966,1751181072491,-476.82891858,0.00028612,3]
[368447967,1751181072501,-490.0,0.00028612,3]
[368447968,1751181072512,-490.0,0.00028612,3]
[368447969,1751181072523,-490.0,0.00028612,3]
[368447970,1751181072533,-490.0,0.00028612,3]
[368447971,1751181072543,-490.0,0.00028612,3]
[368447972,1751181072553,-490.0,0.00028612,3]
[368447973,1751181072563,-324.65686095,0.00028612,3]
[368447974,1751181072573,-186.45885594,0.00028612,3]
[368447975,1751181072582,-490.0,0.00028612,3]
[368447976,1751181072592,-490.0,0.00028612,3]
[368447977,1751181072602,-490.0,0.00028612,3]
[368447978,1751181072612,-490.0,0.00028612,3]
[368447979,1751181072621,-490.0,0.00028612,3]
[368447980,1751181072632,-490.0,0.00028612,3]
[368447981,1751181072642,-188.87261783,0.00028612,3]
[368447982,1751181072651,-501.64510532,0.00028612,3]
[368447983,1751181072662,-490.0,0.00028612,3]
[368447984,1751181072672,-491.61318806,0.00028612,3]
[368447985,1751181072682,-490.0,0.00028612,3]
[368447986,1751181072692,-490.0,0.00028612,3]
[368447987,1751181072702,-490.0,0.00028612,3]
[368447988,1751181072712,-490.0,0.00028612,3]
[368447989,1751181072722,-529.16609247,0.00028612,3]
[368447990,1751181072731,-490.0,0.00028612,3]
[368447991,1751181072741,-303.10021533,0.00028612,3]
[368447992,1751181072751,-490.0,0.00028612,3]
[368447993,1751181072761,-490.0,0.00028612,3]
[368447994,1751181072771,-490.0,0.00028612,3]
[368447995,1751181072782,-490.0,0.00028612,3]
[368447996,1751181072792,-336.49364716,0.00028612,3]
[368447997,1751181072801,-490.0,0.00028612,3]
[368447998,1751181072811,-294.00221367,0.00028612,3]
[368447999,1751181072821,-490.0,0.00028612,3]
[368448000,1751181072831,-490.0,0.00028612,3]
[368448001,1751181072841,-490.0,0.00028612,3]
[368448002,1751181072851,-490.0,0.00028612,3]
[368448003,1751181072861,-498.52085052,0.00028612,3]
[368448004,1751181072872,-490.0,0.00028612,3]
[368448005,1751181072882,-490.0,0.00028612,3]
[368448006,1751181072892,-490.0,0.00028612,3]
[368448007,1751181072902,-490.0,0.00028612,3]
[368448008,1751181072912,-490.0,0.00028612,3]
[368448009,1751181072922,-490.0,0.00028612,3]
[368448010,1751181072932,-490.0,0.00028612,3]
[368448011,1751181072943,-490.0,0.00028612,3]
[368448012,1751181072952,-490.0,0.00028612,3]
[368448013,1751181072962,-490.0,0.00028612,3]
[368448014,1751181072972,-490.0,0.00028612,3]
[368448015,1751181072982,-490.0,0.00028612,3]
[368448016,1751181072992,-490.0,0.00028612,3]
[368448017,1751181073001,-490.0,0.00028612,3]
[368448018,1751181073011,-490.0,0.00028612,3]
[368448019,1751181073021,-490.0,0.00028612,3]
[368448020,1751181073031,-490.0,0.00028612,3]
[368448021,1751181073041,-490.0,0.00028612,3]
[368448022,1751181073051,-490.0,0.00028612,3]
[368448023,1751181073061,-490.0,0.00028612,3]
[368448024,1751181073071,-490.0,0.00028612,3]
[368448025,1751181073081,-490.0,0.00028612,3]
[368448026,1751181073090,-490.0,0.00028612,3]
[368448027,1751181073100,-490.0,0.00028612,3]
[368448028,1751181073111,-490.0,0.00028612,3]
[368448029,1751181073121,-490.0,0.00028612,3]
[368448030,1751181073132,-423.59704227,0.00028612,3]
[368448031,1751181073142,-211.05331348,0.00028612,3]
[368448032,1751181073152,-490.0,0.00028612,3]